bitfinex/quotes_BTCUSD_20241022
["timestamp","ask_amount","ask_price","bid_price","bid_amount"]
[1729621654106,0.0805803,67467.0,67466.0,0.60006856]
[1729621654315,0.0805803,67467.0,67466.0,0.68832832]
[1729621654520,0.0805803,67467.0,67466.0,0.59806856]
[1729621654731,0.0805803,67467.0,67466.0,0.66427052]
[1729621654941,0.0805803,67467.0,67466.0,0.68632811]
[1729621655387,0.0805803,67467.0,67466.0,0.68633465]
[1729621655828,0.0805803,67467.0,67466.0,0.68633981]
[1729621656398,0.0805803,67467.0,67466.0,0.68633818]
[1729621656624,0.0805803,67467.0,67466.0,0.59806856]
[1729621656734,0.0805803,67467.0,67466.0,0.60006856]
[1729621659259,0.0805803,67467.0,67466.0,0.60171856]
[1729621659716,0.0814053,67467.0,67466.0,0.71205118]
[1729621661459,0.0814053,67467.0,67466.0,0.60198855]
[1729621661679,0.0814053,67467.0,67466.0,0.68801365]
[1729621662128,0.1606053,67467.0,67466.0,0.53488932]
[1729621662360,0.1606053,67467.0,67466.0,0.57671856]
[1729621662572,0.1606053,67467.0,67466.0,0.66501365]
[1729621663015,0.1606053,67467.0,67466.0,0.57871856]
[1729621663895,0.1606053,67467.0,67466.0,0.68915852]
[1729621664347,0.1606053,67467.0,67466.0,0.57871856]
[1729621664557,0.1606053,67467.0,67466.0,0.68915852]
[1729621665899,0.1606053,67467.0,67466.0,0.68715852]
[1729621666546,0.1606053,67467.0,67466.0,0.46865593]
[1729621666767,0.1606053,67467.0,67466.0,0.57671856]
[1729621667843,0.1606053,67467.0,67466.0,0.57871856]
[1729621668059,0.1606053,67467.0,67466.0,0.57671856]
[1729621669647,0.16021082,67467.0,67466.0,0.57671856]
[1729621673459,0.16021082,67467.0,67466.0,0.70933133]
[1729621674098,0.16021082,67467.0,67466.0,0.70942496]
[1729621674547,0.16021082,67467.0,67466.0,0.57671856]
[1729621675195,0.16021082,67467.0,67466.0,0.70946534]
[1729621675412,0.16021082,67467.0,67466.0,0.57671856]
[1729621676152,0.16021082,67467.0,67466.0,0.57871856]
[1729621676405,0.16021082,67467.0,67466.0,0.57671856]
[1729621677607,0.16021082,67467.0,67466.0,0.77272863]
[1729621678775,0.16021082,67467.0,67466.0,0.7729559]
[1729621679477,0.16021082,67467.0,67466.0,0.46446984]
[1729621679726,0.16021082,67467.0,67466.0,0.51326247]
[1729621691670,0.16021082,67467.0,67466.0,0.51526247]
[1729621692773,0.16021082,67467.0,67466.0,0.41526247]
[1729621695449,0.16021082,67467.0,67466.0,0.41944856]
[1729621695679,0.16021082,67467.0,67466.0,0.41744856]
[1729621696053,0.16021082,67467.0,67466.0,0.41326247]
[1729621696274,0.16021082,67467.0,67466.0,0.41944856]
[1729621696501,0.16021082,67467.0,67466.0,0.41326247]
[1729621697735,0.16003243,67467.0,67466.0,0.41326247]
[1729621698141,0.16003243,67467.0,67466.0,0.41526247]
[1729621700350,0.16003243,67467.0,67466.0,0.30519984]
[1729621700565,0.16003243,67467.0,67466.0,0.41326247]
[1729621703298,0.16003243,67467.0,67466.0,0.41526247]
[1729621704103,0.16003243,67467.0,67466.0,0.41326247]
[1729621705486,0.16003243,67467.0,67466.0,0.41526247]
[1729621706624,0.16003243,67467.0,67466.0,0.5233251]
[1729621706842,0.000825,67467.0,67466.0,0.5233251]
[1729621707064,0.000825,67467.0,67466.0,0.5213251]
[1729621707980,0.000825,67467.0,67466.0,0.5233251]
[1729621708183,0.0001,67480.0,67479.0,0.25456269]
[1729621708430,0.0001,67480.0,67479.0,0.6196471]
[1729621708623,0.0001,67480.0,67479.0,0.75431168]
[1729621708832,0.0001,67480.0,67479.0,0.6216471]
[1729621709051,0.0001,67480.0,67479.0,0.6196471]
[1729621709264,0.0001,67480.0,67479.0,0.75230756]
[1729621709470,0.0001,67480.0,67479.0,0.75226368]
[1729621709683,0.0001,67480.0,67479.0,0.6196471]
[1729621710119,0.0001,67480.0,67479.0,0.6216471]
[1729621712687,0.00168,67481.0,67480.0,0.16168369]
[1729621712688,1e-06,67481.0,67480.0,0.16168369]
[1729621712900,1e-06,67481.0,67480.0,0.58602093]
[1729621713090,1e-06,67481.0,67480.0,0.69408356]
[1729621713302,9e-05,67489.0,67488.0,0.28372878]
[1729621713504,9e-05,67489.0,67488.0,0.53875056]
[1729621713706,9e-05,67489.0,67488.0,0.51385593]
[1729621713912,9e-05,67489.0,67488.0,0.62191856]
[1729621714376,9e-05,67489.0,67488.0,0.62191422]
[1729621715373,9e-05,67489.0,67488.0,0.62185088]
[1729621715800,9e-05,67489.0,67488.0,0.51156447]
[1729621716361,9e-05,67489.0,67488.0,0.59977357]
[1729621717332,0.17979,67489.0,67488.0,0.46966344]
[1729621717541,0.17979,67489.0,67488.0,0.57772607]
[1729621717757,0.17979,67489.0,67488.0,0.57272607]
[1729621718216,0.17979,67489.0,67488.0,0.57772607]
[1729621718423,0.17979,67489.0,67488.0,0.50656447]
[1729621718568,0.17979,67489.0,67488.0,0.39850184]
[1729621723138,0.18479,67489.0,67488.0,0.39850184]
[1729621723775,0.185616,67489.0,67488.0,0.39850184]
[1729621724374,0.185616,67489.0,67488.0,0.39832316]
[1729621724584,0.185616,67489.0,67488.0,0.29832316]
[1729621725843,0.185616,67489.0,67488.0,0.39832316]
[1729621727726,0.185616,67489.0,67488.0,0.00119001]
[1729621728360,0.1928,67488.0,67487.0,0.00119001]
[1729621728569,0.30086263,67488.0,67487.0,0.00119001]
[1729621728971,0.30086263,67488.0,67487.0,0.14936601]
[1729621729407,0.30086263,67488.0,67487.0,0.24936601]
[1729621729819,0.1928,67488.0,67487.0,0.24936601]
[1729621733171,0.1928,67488.0,67487.0,0.39832516]
[1729621733839,0.1978,67488.0,67487.0,0.39850384]
[1729621734067,0.1928,67488.0,67487.0,0.39850384]
[1729621734321,0.000916,67489.0,67488.0,0.14936401]
[1729621734322,0.005916,67489.0,67488.0,0.14936401]
[1729621734567,0.005916,67489.0,67488.0,0.39832316]
[1729621734805,0.005916,67489.0,67488.0,0.39850184]
[1729621735488,0.000916,67489.0,67488.0,0.39850184]
[1729621735961,0.005916,67489.0,67488.0,0.39850184]
[1729621741612,0.195416,67489.0,67488.0,0.39832316]
[1729621743363,0.195416,67489.0,67488.0,0.39832316]
[1729621754218,0.1796,67488.0,67487.0,0.001652]
[1729621754431,0.1796,67488.0,67487.0,0.249828]
[1729621754871,0.1796,67488.0,67487.0,0.101652]
[1729621755303,0.1796,67488.0,67487.0,0.249828]
[1729621756480,0.1796,67488.0,67487.0,0.149828]
[1729621757630,0.1796,67488.0,67487.0,0.001652]
[1729621757851,0.1796,67488.0,67487.0,0.149828]
[1729621760293,0.1796,67488.0,67487.0,0.001652]
[1729621760506,0.1796,67488.0,67487.0,0.149828]
[1729621760937,0.1796,67488.0,67487.0,0.001652]
[1729621761146,0.1796,67488.0,67487.0,0.149828]
[1729621765477,0.180426,67488.0,67487.0,0.149828]
[1729621765695,0.180426,67488.0,67487.0,0.15101801]
[1729621771474,0.180426,67488.0,67487.0,0.149828]
[1729621772523,0.180426,67488.0,67487.0,0.15101801]
[1729621773824,0.180426,67488.0,67487.0,0.25101801]
[1729621785524,3.180426,67488.0,67487.0,0.25101801]
[1729621789175,3.005826,67488.0,67487.0,0.39997716]
[1729621790158,3.005826,67488.0,67487.0,0.40015584]
[1729621800265,3.097326,67488.0,67487.0,0.40015584]
[1729621802757,3.005826,67488.0,67487.0,0.40015584]
[1729621803005,3.000826,67488.0,67487.0,0.50810349]
[1729621803971,3.000826,67488.0,67487.0,0.68340349]
[1729621805680,3.000826,67488.0,67487.0,0.51310349]
[1729621805893,3.11377365,67488.0,67487.0,0.34419906]
[1729621806132,3.28627365,67488.0,67487.0,0.15061115]
[1729621806346,3.28627365,67488.0,67487.0,0.15180116]
[1729621806552,3.178326,67488.0,67487.0,0.29997716]
[1729621807389,3.178326,67488.0,67487.0,0.39997716]
[1729621827039,3.080926,67488.0,67487.0,0.39997716]
[1729621827258,3.005826,67488.0,67487.0,0.39997716]
[1729621830516,3.005826,67488.0,67487.0,0.249828]
[1729621830950,3.005826,67488.0,67487.0,0.25101801]
[1729621832467,3.181226,67488.0,67487.0,0.25101801]
[1729621836035,3.181226,67488.0,67487.0,0.249828]
[1729621837439,3.181226,67488.0,67487.0,0.25101801]
[1729621838160,3.181226,67488.0,67487.0,0.249828]
[1729621839110,3.181226,67488.0,67487.0,0.25101801]
[1729621840266,3.181226,67488.0,67487.0,0.249828]
[1729621840502,3.181226,67488.0,67487.0,0.001652]
[1729621840503,3.33018515,67488.0,67487.0,0.001652]
[1729621840741,3.46183791,67488.0,67487.0,0.001652]
[1729621840972,3.35390009,67488.0,67487.0,0.001652]
[1729621841441,3.20494094,67488.0,67487.0,0.001652]
[1729621844056,3.19104732,67488.0,67487.0,0.001652]
[1729621844475,3.20492826,67488.0,67487.0,0.001652]
[1729621845674,3.46104008,67488.0,67487.0,0.001652]
[1729621845903,0.01482132,67480.0,67479.0,0.001652]
[1729621846134,0.16303032,67472.0,67471.0,0.02319209]
[1729621846372,0.01482132,67471.0,67470.0,0.22266425]
[1729621846592,0.01482132,67467.0,67463.0,0.22266425]
[1729621846808,0.29465914,67467.0,67463.0,0.22266425]
[1729621847909,0.29465914,67467.0,67455.0,0.51915625]
[1729621847910,0.29465914,67467.0,67458.0,0.296476]
[1729621848121,0.29465914,67467.0,67460.0,0.148234]
[1729621848367,0.29465914,67467.0,67456.0,0.00165]
[1729621848368,0.01482132,67457.0,67456.0,0.00165]
[1729621848587,0.01482132,67457.0,67444.0,0.00165]
[1729621848588,0.19482132,67448.0,67444.0,0.00165]
[1729621848805,0.19482132,67448.0,67444.0,0.149921]
[1729621848806,0.005,67445.0,67444.0,0.149921]
[1729621849022,0.005,67445.0,67444.0,0.00165]
[1729621849250,0.01224876,67445.0,67444.0,0.00165]
[1729621849467,0.005,67445.0,67444.0,0.00165]
[1729621849702,0.18,67448.0,67444.0,0.00165]
[1729621849703,0.005,67446.0,67444.0,0.00165]
[1729621849920,0.005,67446.0,67445.0,0.444805]
[1729621850127,0.0765,67453.0,67452.0,0.148253]
[1729621850342,0.0815,67453.0,67452.0,0.148253]
[1729621850568,0.08372397,67453.0,67446.0,0.296533]
[1729621850788,0.005,67449.0,67448.0,0.14945201]
[1729621851015,0.005,67449.0,67448.0,0.148262]
[1729621851658,0.01225823,67449.0,67448.0,0.148262]
[1729621851871,0.005,67449.0,67448.0,0.148262]
[1729621852081,0.01222871,67449.0,67448.0,0.148262]
[1729621852297,0.005,67449.0,67448.0,0.14945201]
[1729621852517,0.01222871,67449.0,67448.0,0.14945201]
[1729621852756,0.005,67449.0,67448.0,0.148262]
[1729621852959,0.01222871,67449.0,67448.0,0.148262]
[1729621853168,0.005,67449.0,67448.0,0.148262]
[1729621853381,0.01222871,67449.0,67448.0,0.148262]
[1729621853612,0.16885997,67452.0,67445.0,0.14945801]
[1729621853613,0.005,67446.0,67445.0,0.14945801]
[1729621853818,0.005,67446.0,67445.0,0.29841716]
[1729621854254,0.005,67445.0,67444.0,0.00165]
[1729621854689,0.01219614,67445.0,67444.0,0.00165]
[1729621855107,0.03030175,67445.0,67444.0,0.00165]
[1729621858630,0.01219614,67445.0,67444.0,0.00165]
[1729621858853,0.01219614,67445.0,67444.0,0.29888015]
[1729621859072,0.00719614,67445.0,67444.0,0.29888015]
[1729621859329,0.005,67449.0,67448.0,0.148262]
[1729621859556,0.005,67449.0,67448.0,0.14945201]
[1729621859802,0.01197304,67449.0,67448.0,0.14945201]
[1729621860023,0.005,67449.0,67448.0,0.14945201]
[1729621860249,0.01219464,67449.0,67448.0,0.14945201]
[1729621861092,0.005,67449.0,67448.0,0.14945201]
[1729621861926,0.005,67449.0,67448.0,0.15110401]
[1729621862946,0.01197517,67449.0,67448.0,0.15110401]
[1729621863154,0.005,67449.0,67448.0,0.15110401]
[1729621863394,0.005,67449.0,67448.0,0.25110401]
[1729621863574,0.005,67449.0,67448.0,0.10284201]
[1729621863814,0.005,67449.0,67448.0,0.25110401]
[1729621864001,0.01217352,67449.0,67448.0,0.25110401]
[1729621864136,0.005,67449.0,67448.0,0.25110401]
[1729621866741,0.01315,67449.0,67448.0,0.001652]
[1729621867165,0.10067835,67449.0,67448.0,0.001652]
[1729621867972,0.09252835,67449.0,67448.0,0.001652]
[1729621870073,0.19232835,67449.0,67448.0,0.001652]
[1729621871125,0.19714967,67449.0,67448.0,0.001652]
[1729621871335,0.20214967,67449.0,67448.0,0.001652]
[1729621871743,0.19232835,67449.0,67448.0,0.001652]
[1729621872317,0.19232835,67449.0,67448.0,0.149914]
[1729621872518,0.09252835,67449.0,67448.0,0.149914]
[1729621872954,0.0855,67449.0,67448.0,0.15110401]
[1729621873699,0.0855,67449.0,67448.0,0.149914]
[1729621874110,0.0855,67449.0,67448.0,0.15110401]
[1729621874557,0.0855,67449.0,67448.0,0.149914]
[1729621874992,0.09405,67449.0,67448.0,0.001652]
[1729621875410,0.10105165,67449.0,67448.0,0.001652]
[1729621875643,0.09250165,67449.0,67448.0,0.001652]
[1729621875853,0.09250165,67449.0,67448.0,0.15110401]
[1729621876267,0.09250165,67449.0,67448.0,0.149914]
[1729621876507,0.09250165,67449.0,67448.0,0.001652]
[1729621876716,0.09250165,67449.0,67448.0,0.149914]
[1729621877407,0.09250165,67449.0,67448.0,0.001652]
[1729621877626,0.09250165,67449.0,67448.0,0.149914]
[1729621879697,0.09250165,67449.0,67448.0,0.001652]
[1729621879942,0.09250165,67449.0,67448.0,0.149914]
[1729621880965,0.01200165,67449.0,67448.0,0.149914]
[1729621881232,0.00700165,67449.0,67448.0,0.56773312]
[1729621881487,0.005,67452.0,67451.0,0.14944501]
[1729621883118,0.005,67452.0,67451.0,0.44595501]
[1729621884058,0.005,67454.0,67453.0,0.148251]
[1729621884777,0.005,67454.0,67453.0,0.14944101]
[1729621885017,0.000826,67456.0,67453.0,0.14944101]
[1729621885018,0.000826,67456.0,67454.0,0.248247]
[1729621885255,0.00718212,67455.0,67454.0,0.1]
[1729621885949,0.00718212,67455.0,67454.0,0.248249]
[1729621886423,0.00718212,67455.0,67454.0,0.1]
[1729621886665,0.00718212,67455.0,67452.0,0.1]
[1729621887416,0.00718212,67455.0,67454.0,0.248249]
[1729621887666,0.00718212,67455.0,67454.0,0.1]
[1729621888368,0.00718212,67455.0,67452.0,0.29769401]
[1729621888614,0.00718212,67455.0,67453.0,0.1]
[1729621888863,0.00718212,67455.0,67454.0,0.1]
[1729621889677,0.00718212,67455.0,67448.0,0.001652]
[1729621889678,0.005,67453.0,67448.0,0.001652]
[1729621889962,0.35988129,67449.0,67448.0,0.001652]
[1729621890198,0.50814129,67449.0,67448.0,0.001652]
[1729621890479,0.3670878,67449.0,67448.0,0.001652]
[1729621890968,0.43344708,67449.0,67448.0,0.001652]
[1729621892094,0.3670878,67449.0,67448.0,0.001652]
[1729621893440,0.41144959,67449.0,67448.0,0.001652]
[1729621893884,0.3670878,67449.0,67448.0,0.001652]
[1729621894533,0.43363049,67449.0,67448.0,0.001652]
[1729621895409,0.43372016,67449.0,67448.0,0.001652]
[1729621895651,0.3670878,67449.0,67448.0,0.001652]
[1729621895886,0.43044952,67449.0,67448.0,0.001652]
[1729621896128,0.3670878,67449.0,67448.0,0.001652]
[1729621896365,0.58975205,67449.0,67448.0,0.001652]
[1729621896613,0.3670878,67449.0,67448.0,0.001652]
[1729621897086,0.3900878,67449.0,67448.0,0.001652]
[1729621897549,0.5383478,67449.0,67448.0,0.001652]
[1729621897805,0.67155499,67449.0,67448.0,0.001652]
[1729621898362,0.52329499,67449.0,67448.0,0.001652]
[1729621898603,0.5899111,67449.0,67448.0,0.001652]
[1729621898993,0.43370391,67449.0,67448.0,0.001652]
[1729621899197,0.19340651,67449.0,67448.0,0.001652]
[1729621899410,0.18840651,67449.0,67448.0,0.149914]
[1729621900673,0.18840651,67449.0,67448.0,0.001652]
[1729621900874,0.18840651,67449.0,67448.0,0.149914]
[1729621901095,0.18840651,67449.0,67448.0,0.15110401]
[1729621902279,0.18840651,67449.0,67448.0,0.001652]
[1729621904614,0.01220651,67449.0,67448.0,0.15110401]
[1729621904823,0.00720651,67449.0,67448.0,0.30006316]
[1729621905033,0.005,67453.0,67452.0,0.148253]
[1729621905453,0.01239338,67453.0,67452.0,0.148253]
[1729621905661,0.00739338,67453.0,67452.0,0.1]
[1729621905884,0.00739338,67453.0,67452.0,0.248253]
[1729621906121,0.0762,67454.0,67453.0,0.1]
[1729621906307,0.0762,67454.0,67453.0,0.248251]
[1729621906515,0.0762,67454.0,67453.0,0.1]
[1729621906735,0.0762,67454.0,67453.0,0.248251]
[1729621910001,0.07521921,67454.0,67453.0,0.24944101]
[1729621911279,0.000826,67456.0,67455.0,0.00119001]
[1729621911502,0.000826,67456.0,67455.0,0.14943601]
[1729621911717,0.00821625,67456.0,67455.0,0.14943601]
[1729621911925,0.000826,67456.0,67455.0,0.14943601]
[1729621913820,0.000826,67456.0,67452.0,0.249905]
[1729621914032,0.000826,67456.0,67454.0,0.1]
[1729621914237,0.00738674,67455.0,67454.0,0.1]
[1729621915109,0.00738674,67455.0,67454.0,0.248249]
[1729621916027,0.00738674,67455.0,67452.0,0.101652]
[1729621916251,0.1865,67454.0,67452.0,0.001652]
[1729621916941,0.00740836,67453.0,67452.0,0.001652]
[1729621917600,0.01240836,67453.0,67452.0,0.001652]
[1729621918705,0.01240836,67453.0,67452.0,0.149905]
[1729621918924,0.01240836,67453.0,67452.0,0.001652]
[1729621919365,0.01240836,67453.0,67452.0,0.149905]
[1729621919578,0.01240836,67453.0,67452.0,0.001652]
[1729621920441,0.01240836,67453.0,67452.0,0.149905]
[1729621920663,0.01240836,67453.0,67452.0,0.001652]
[1729621924829,0.01240836,67453.0,67452.0,0.149905]
[1729621925274,0.005,67453.0,67452.0,0.149905]
[1729621926540,0.000826,67456.0,67452.0,0.001652]
[1729621926767,0.000826,67456.0,67455.0,0.148246]
[1729621926995,0.005826,67456.0,67455.0,0.148246]
[1729621927868,0.005,67454.0,67453.0,0.29769201]
[1729621928087,0.005,67454.0,67453.0,0.44594301]
[1729621928295,0.005,67454.0,67453.0,0.444753]
[1729621928733,0.005826,67454.0,67453.0,0.444753]
[1729621928953,0.005826,67454.0,67453.0,0.44594301]
[1729621930337,0.000826,67454.0,67453.0,0.44594301]
[1729621931288,0.000826,67454.0,67453.0,0.87936693]
[1729621931547,0.000826,67454.0,67453.0,1.0532269]
[1729621931796,0.000826,67454.0,67453.0,0.97284442]
[1729621932020,0.000826,67454.0,67453.0,0.88636693]
[1729621932274,0.000826,67454.0,67453.0,1.14365391]
[1729621932498,0.22266425,67466.0,67465.0,0.00136869]
[1729621932752,0.22266425,67466.0,67465.0,0.74751281]
[1729621932989,0.005,67483.0,67477.0,0.148198]
[1729621933254,0.005,67483.0,67477.0,0.46720713]
[1729621933727,0.005,67483.0,67478.0,0.14938601]
[1729621933964,0.005,67483.0,67478.0,0.29834516]
[1729621935387,0.005,67483.0,67478.0,0.39834516]
[1729621936630,0.0781,67478.0,67471.0,0.148211]
[1729621936826,0.005,67472.0,67466.0,0.14895915]
[1729621937564,0.005,67472.0,67468.0,0.148218]
[1729621937810,0.005,67472.0,67469.0,0.148214]
[1729621938061,0.005,67472.0,67471.0,0.148211]
[1729621938302,0.0781,67478.0,67471.0,0.46528197]
[1729621938545,0.005,67473.0,67472.0,0.148208]
[1729621938758,0.005,67473.0,67472.0,0.14939801]
[1729621939541,0.005,67473.0,67472.0,0.148208]
[1729621942251,0.005,67477.0,67473.0,0.1]
[1729621942255,0.005,67477.0,67474.0,0.00119001]
[1729621942919,0.005,67477.0,67470.0,0.1]
[1729621943132,0.00982132,67474.0,67464.0,0.1]
[1729621943384,0.005,67475.0,67462.0,0.148229]
[1729621943385,0.0832,67470.0,67463.0,0.1]
[1729621943832,0.0832,67470.0,67463.0,0.10119001]
[1729621944044,0.0832,67470.0,67463.0,0.396455]
[1729621944317,0.0832,67470.0,67467.0,0.1]
[1729621944544,0.0832,67470.0,67467.0,0.24822]
[1729621945639,0.0832,67470.0,67467.0,0.00119001]
[1729621945868,0.0832,67470.0,67468.0,0.148216]
[1729621947508,0.0832,67470.0,67467.0,0.296441]
[1729621947750,0.0751,67475.0,67469.0,0.16885997]
[1729621947969,0.0751,67475.0,67474.0,0.148205]
[1729621948194,0.005,67477.0,67476.0,0.148199]
[1729621948901,0.005,67477.0,67474.0,0.14939501]
[1729621949130,0.005,67477.0,67472.0,0.396416]
[1729621949131,0.005,67477.0,67473.0,0.148207]
[1729621949367,0.005,67477.0,67469.0,0.31781912]
[1729621949368,0.22266425,67476.0,67469.0,0.1]
[1729621949582,0.005,67474.0,67471.0,0.148211]
[1729621949806,0.005,67477.0,67474.0,0.148204]
[1729621950047,0.0983,67478.0,67474.0,0.148204]
[1729621950048,0.1033,67478.0,67474.0,0.148204]
[1729621950262,0.005,67477.0,67471.0,0.00119001]
[1729621950502,0.0983,67478.0,67469.0,0.296432]
[1729621950503,0.005,67474.0,67470.0,0.14940301]
[1729621950719,0.0751,67473.0,67468.0,0.24940701]
[1729621950942,0.0751,67473.0,67469.0,0.148215]
[1729621951189,0.0751,67473.0,67470.0,0.148213]
[1729621951612,0.0751,67473.0,67469.0,0.148215]
[1729621951839,0.0751,67473.0,67470.0,0.00119001]
[1729621953185,0.0751,67473.0,67471.0,0.148211]
[1729621953411,0.0751,67473.0,67468.0,0.10119001]
[1729621953412,0.0751,67473.0,67470.0,0.148213]
[1729621953865,0.0751,67473.0,67470.0,0.148212]
[1729621954298,0.0751,67473.0,67469.0,0.29643]
[1729621954536,0.0751,67473.0,67471.0,0.14821]
[1729621955037,0.005,67475.0,67474.0,0.14939501]
[1729621955423,0.005,67475.0,67474.0,0.148205]
[1729621955844,0.005,67475.0,67470.0,0.00119001]
[1729621956054,0.0751,67477.0,67468.0,0.1]
[1729621956055,0.005,67474.0,67471.0,0.14821]
[1729621956273,0.005,67474.0,67470.0,0.296424]
[1729621956481,0.005,67474.0,67472.0,0.148209]
[1729621956697,3.22266425,67473.0,67470.0,0.148213]
[1729621956920,3.0,67473.0,67470.0,0.148213]
[1729621957142,3.0,67473.0,67468.0,0.00119001]
[1729621957373,3.0,67473.0,67461.0,0.00119001]
[1729621957374,0.0755,67468.0,67461.0,0.00119001]
[1729621957778,0.18062132,67464.0,67454.0,0.24266425]
[1729621958011,0.18062132,67464.0,67455.0,0.22266425]
[1729621958012,0.0755,67457.0,67455.0,0.22266425]
[1729621958233,0.1658,67457.0,67452.0,0.001652]
[1729621958455,0.1658,67457.0,67453.0,0.148251]
[1729621958902,0.1658,67457.0,67453.0,0.14944101]
[1729621959340,0.1658,67457.0,67454.0,0.1]
[1729621959803,0.1658,67457.0,67454.0,0.00119001]
[1729621960025,0.1658,67457.0,67454.0,0.14943801]
[1729621960498,0.1658,67457.0,67455.0,0.1]
[1729621961356,0.1658,67457.0,67452.0,0.001652]
[1729621961597,0.1658,67457.0,67455.0,0.148246]
[1729621962304,0.1658,67457.0,67454.0,0.00119001]
[1729621962305,0.1658,67457.0,67456.0,0.15108601]
[1729621962538,0.1658,67457.0,67456.0,0.001652]
[1729621962771,0.1658,67457.0,67456.0,0.149896]
[1729621966573,0.0755,67457.0,67456.0,0.149896]
[1729621970344,0.0755,67457.0,67456.0,0.15108601]
[1729621970602,0.005,67461.0,67460.0,0.148235]
[1729621970854,0.02216915,67471.0,67461.0,0.148233]
[1729621970855,0.0841,67469.0,67461.0,0.148233]
[1729621971106,0.0791,67469.0,67468.0,0.148218]
[1729621971377,0.0841,67469.0,67468.0,0.148218]
[1729621971838,0.0791,67469.0,67468.0,0.148218]
[1729621973856,0.0841,67469.0,67468.0,0.148218]
[1729621974582,0.0791,67469.0,67468.0,0.148218]
[1729621976536,0.0791,67469.0,67467.0,0.1]
[1729621977182,0.0972526,67469.0,67461.0,0.148233]
[1729621977396,0.0972526,67469.0,67462.0,0.1]
[1729621977853,0.0972526,67469.0,67462.0,0.24823]
[1729621978086,0.0972526,67469.0,67464.0,0.1]
[1729621978321,0.00482132,67467.0,67464.0,0.1]
[1729621979240,0.00482132,67467.0,67463.0,0.1]
[1729621980110,0.00482132,67467.0,67464.0,0.1]
[1729621981232,0.00482132,67467.0,67462.0,0.1]
[1729621981453,0.00482132,67467.0,67460.0,0.10119001]
[1729621981694,0.00482132,67467.0,67462.0,0.14823]
[1729621981929,0.00482132,67467.0,67463.0,0.248229]
[1729621982845,0.00482132,67467.0,67459.0,0.1]
[1729621983065,0.0962,67466.0,67463.0,0.1]
[1729621983275,0.0814,67465.0,67463.0,0.1]
[1729621983736,0.0814,67465.0,67454.0,0.296494]
[1729621983737,0.40634554,67464.0,67454.0,0.296494]
[1729621983962,0.0814,67457.0,67453.0,0.02319836]
[1729621984176,0.0814,67457.0,67454.0,0.148249]
[1729621984389,0.0814,67457.0,67454.0,0.148248]
[1729621984811,0.0814,67457.0,67452.0,0.001652]
[1729621985026,0.0814,67457.0,67454.0,0.148248]
[1729621985232,0.0814,67457.0,67452.0,0.001652]
[1729621985444,0.09622132,67457.0,67452.0,0.001652]
[1729621985679,0.42177413,67457.0,67452.0,0.001652]
[1729621986113,0.27353213,67457.0,67452.0,0.001652]
[1729621986767,0.20628895,67457.0,67452.0,0.001652]
[1729621987001,0.1776,67457.0,67453.0,0.296502]
[1729621987438,0.1776,67457.0,67456.0,0.149896]
[1729621987892,0.1776,67457.0,67456.0,0.15108601]
[1729621988318,0.0814,67457.0,67456.0,0.15108601]
[1729621989208,0.0814,67457.0,67456.0,0.001652]
[1729621989435,0.0864,67457.0,67456.0,0.001652]
[1729621990543,0.19733007,67457.0,67456.0,0.001652]
[1729621990986,0.18632132,67457.0,67456.0,0.001652]
[1729621991207,0.20018745,67457.0,67456.0,0.001652]
[1729621991415,0.20018647,67457.0,67456.0,0.001652]
[1729621994692,0.20018142,67457.0,67456.0,0.001652]
[1729622002197,0.18632132,67457.0,67456.0,0.001652]
[1729622002417,0.20017613,67457.0,67456.0,0.001652]
[1729622002652,0.41505011,67457.0,67456.0,0.001652]
[1729622002878,0.26680811,67457.0,67456.0,0.001652]
[1729622003313,0.41505011,67457.0,67456.0,0.001652]
[1729622003740,0.26680811,67457.0,67456.0,0.001652]
[1729622006380,0.41505961,67457.0,67456.0,0.001652]
[1729622006627,0.26681761,67457.0,67456.0,0.001652]
[1729622009146,0.09526448,67457.0,67456.0,0.001652]
[1729622009388,0.0864,67457.0,67456.0,0.001652]
[1729622011185,0.10026448,67457.0,67456.0,0.001652]
[1729622013283,0.2583278,67457.0,67456.0,0.001652]
[1729622013504,0.3490278,67457.0,67456.0,0.001652]
[1729622013727,0.49798695,67457.0,67456.0,0.001652]
[1729622013958,0.49881295,67457.0,67456.0,0.001652]
[1729622014206,0.65461843,67457.0,67456.0,0.001652]
[1729622014655,0.69150944,67457.0,67456.0,0.001652]
[1729622015548,0.69805363,67457.0,67456.0,0.001652]
[1729622016215,0.52838367,67457.0,67456.0,0.001652]
[1729622019244,0.69724364,67457.0,67456.0,0.001652]
[1729622022465,0.74158175,67457.0,67456.0,0.001652]
[1729622023316,0.74158426,67457.0,67456.0,0.001652]
[1729622024164,0.74239425,67457.0,67456.0,0.001652]
[1729622024413,1.05722235,67457.0,67456.0,0.001652]
[1729622024623,1.05641236,67457.0,67456.0,0.001652]
[1729622024826,1.1673989,67457.0,67456.0,0.001652]
[1729622025030,1.05641236,67457.0,67456.0,0.001652]
[1729622025697,1.05722235,67457.0,67456.0,0.001652]
[1729622026533,1.05722005,67457.0,67456.0,0.001652]
[1729622027603,1.05722501,67457.0,67456.0,0.001652]
[1729622030904,1.07944586,67457.0,67456.0,0.001652]
[1729622032076,6.12944586,67457.0,67456.0,0.001652]
[1729622032303,6.12955733,67457.0,67456.0,0.001652]
[1729622032534,6.26285138,67457.0,67456.0,0.001652]
[1729622033558,6.26830834,67457.0,67456.0,0.001652]
[1729622034535,6.49789416,67457.0,67456.0,0.001652]
[1729622034791,6.36460011,67457.0,67456.0,0.001652]
[1729622035261,6.36660011,67457.0,67456.0,0.001652]
[1729622036849,6.36658089,67457.0,67456.0,0.001652]
[1729622037425,6.36758089,67457.0,67456.0,0.001652]
[1729622037652,6.50084903,67457.0,67456.0,0.001652]
[1729622038603,6.27126025,67457.0,67456.0,0.001652]
[1729622039292,6.27045026,67457.0,67456.0,0.001652]
[1729622039513,6.36755482,67457.0,67456.0,0.001652]
[1729622040477,6.41490007,67457.0,67456.0,0.001652]
[1729622040957,6.4009783,67457.0,67456.0,0.001652]